Workbook

Sheet Tribal 1c.
A1: Table 1c. – DRAFT EECBG Program Formula Grant Funding Allocations to Indian tribes Listed Alphabetically by State(s) and Indian tribe
A3: Total (Indian Tribes) | D3: =SUM(D5:D778) -> 8800000
A4: # | B4: State(s) | C4: Entity Name | D4: Allocation
A5: =IFERROR(A4+1,1) -> 1 | B5: AK | C5: Afognak Native Corporation | D5: 10420
A6: 2 | B6: AK | C6: Agdaagux Tribe of King Cove | D6: 10270
A7: 3 | B7: AK | C7: Ahtna, Inc. | D7: 10650
A8: 4 | B8: AK | C8: Akhiok-Kaguyak, Inc. | D8: 10040
A9: 5 | B9: AK | C9: Akiachak Limited | D9: 10290
A10: 6 | B10: AK | C10: Akiachak Native Community | D10: 10290
A11: 7 | B11: AK | C11: Akiak Native Community | D11: 10170
A12: 8 | B12: AK | C12: Alakanuk Native Corporation | D12: 10420
A13: 9 | B13: AK | C13: Alaska Peninsula Corporation | D13: 10440
A14: 10 | B14: AK | C14: Alatna Village | D14: 10030
A15: 11 | B15: AK | C15: Aleknagik Natives Limited | D15: 10150
A16: 12 | B16: AK | C16: Aleut Corporation | D16: 12100
A17: 13 | B17: AK | C17: Alexander Creek Inc. | D17: 10010
A18: 14 | B18: AK | C18: Algaaciq Native Village (St. Mary’s) | D18: 10210
A19: 15 | B19: AK | C19: Allakaket Village | D19: 10120
A20: 16 | B20: AK | C20: Alutiiq Tribe of Old Harbor | D20: 10250
A21: 17 | B21: AK | C21: Angoon Community Association | D21: 10080
A22: 18 | B22: AK | C22: Anton Larsen, Inc. | D22: 10000
A23: 19 | B23: AK | C23: Anvik Village | D23: 10110
A24: 20 | B24: AK | C24: Arctic Slope Regional Corporation | D24: 17930
A25: 21 | B25: AK | C25: Arctic Village | D25: 10310
A26: 22 | B26: AK | C26: Arviq Incorporated | D26: 10030
A27: 23 | B27: AK | C27: Asa’carsarmiut Tribe | D27: 10510
A28: 24 | B28: AK | C28: Askinuk Corporation | D28: 10350
A29: 25 | B29: AK | C29: Atmautluak Limited | D29: 10230
A30: 26 | B30: AK | C30: Atqasuk Corporation | D30: 10080
A31: 27 | B31: AK | C31: Atxam Corporation | D31: 10080
A32: 28 | B32: AK | C32: Ayakulik Incorporated | D32: 10000
A33: 29 | B33: AK | C33: Azachorok Incorporated | D33: 10510
A34: 30 | B34: AK | C34: Baan-o-yeel kon Corporation | D34: 10100
A35: 31 | B35: AK | C35: Bay View Incorporated | D35: 10030
A36: 32 | B36: AK | C36: Bean Ridge Corporation | D36: 10030
A37: 33 | B37: AK | C37: Beaver Kwit'Chin Corporation | D37: 10110
A38: 34 | B38: AK | C38: Beaver Village | D38: 10110
A39: 35 | B39: AK | C39: Becharof Corporation | D39: 10130
A40: 36 | B40: AK | C40: Belkofski Corporation | D40: 10040
A41: 37 | B41: AK | C41: Bells Flats Natives Inc. | D41: 10260
A42: 38 | B42: AK | C42: Bering Straits Native Corporation | D42: 15380
A43: 39 | B43: AK | C43: Bethel Native Corporation | D43: 11200
A44: 40 | B44: AK | C44: Birch Creek Tribe | D44: 10040
A45: 41 | B45: AK | C45: Brevig Mission Native Corporation | D45: 10180
A46: 42 | B46: AK | C46: Bristol Bay Native Corporation | D46: 14540
A47: 43 | B47: AK | C47: Calista Corporation | D47: 22580
A48: 44 | B48: AK | C48: Cape Fox Corporation | D48: 10120
A49: 45 | B49: AK | C49: Central Council of the Tlingit & Haida Indian Tribes | D49: 21460
A50: 46 | B50: AK | C50: Chalkyitsik Native Corporation | D50: 10060
A51: 47 | B51: AK | C51: Chalkyitsik Village | D51: 10060
A52: 48 | B52: AK | C52: Chaluka Corporation | D52: 10060
A53: 49 | B53: AK | C53: Cheesh-Na Tribe | D53: 10070
A54: 50 | B54: AK | C54: Chefarnrmute Incorporated | D54: 10210
A55: 51 | B55: AK | C55: Chevak Company | D55: 10570
A56: 52 | B56: AK | C56: Chevak Native Village | D56: 10570
A57: 53 | B57: AK | C57: Chickaloon MooseCreek Native Association, Inc. | D57: 10120
A58: 54 | B58: AK | C58: Chickaloon Native Village | D58: 10120
A59: 55 | B59: AK | C59: Chignik Bay Tribal Council | D59: 10170
A60: 56 | B60: AK | C60: Chignik Lagoon Native Corporation | D60: 10170
A61: 57 | B61: AK | C61: Chignik Lake Village | D61: 10110
A62: 58 | B62: AK | C62: Chignik River Limited | D62: 10110
A63: 59 | B63: AK | C63: Chilkat Indian Village (Klukwan) | D63: 10100
A64: 60 | B64: AK | C64: Chilkoot Indian Association (Haines) | D64: 10200
A65: 61 | B65: AK | C65: Chinik Eskimo Community (Golovin) | D65: 10150
A66: 62 | B66: AK | C66: Chinuruk Incorporated | D66: 10150
A67: 63 | B67: AK | C67: Chitina Native Corporation | D67: 10130
A68: 64 | B68: AK | C68: Choggiung Ltd. | D68: 11110
A69: =IFERROR(A68+1,1) -> 65 | B69: AK | C69: Chugach Alaska Corporation | D69: 10720
A70: 66 | B70: AK | C70: Chuloonawick Corporation | D70: 10050
A71: 67 | B71: AK | C71: Chuloonawick Native Village | D71: 10050
A72: 68 | B72: AK | C72: Circle Native Community | D72: 10110
A73: 69 | B73: AK | C73: Cook Inlet Region, Inc. | D73: 12870
A74: 70 | B74: AK | C74: Council Native Corporation | D74: 10070
A75: 71 | B75: AK | C75: Craig Tribal Association | D75: 10180
A76: 72 | B76: AK | C76: Cully Corporation Inc. | D76: 10070
A77: 73 | B77: AK | C77: Curyung Tribal Council | D77: 11030
A78: 74 | B78: AK | C78: Danzhit Hanlaii, Corporation | D78: 10110
A79: 75 | B79: AK | C79: Deloy Ges Corporation | D79: 10110
A80: 76 | B80: AK | C80: Deloycheet, Incorporated | D80: 10270
A81: 77 | B81: AK | C81: Dineega, Corporation | D81: 10240
A82: 78 | B82: AK | C82: Dinyea Corporation | D82: 10110
A83: 79 | B83: AK | C83: Dot Lake Native Corporation | D83: 10050
A84: 80 | B84: AK | C84: Douglas Indian Association | D84: 10280
A85: 81 | B85: AK | C85: Doyon, Ltd. | D85: 15710
A86: 82 | B86: AK | C86: Egegik Village | D86: 10130
A87: 83 | B87: AK | C87: Eklutna Native Village | D87: 10140
A88: 84 | B88: AK | C88: Eklutna, Inc. | D88: 10140
A89: 85 | B89: AK | C89: Ekwok Natives Limited | D89: 10120
A90: 86 | B90: AK | C90: Elim Native Corporation | D90: 10220
A91: 87 | B91: AK | C91: Emmonak Corporation | D91: 10410
A92: 88 | B92: AK | C92: Emmonak Village | D92: 10410
A93: 89 | B93: AK | C93: Evansville Village (aka Bettles Field) | D93: 10050
A94: 90 | B94: AK | C94: Evansville, Inc. | D94: 10050
A95: 91 | B95: AK | C95: Far West, Inc. | D95: 10110
A96: 92 | B96: AK | C96: Galena Village (aka Louden Village) | D96: 10310
A97: 93 | B97: AK | C97: Gana-a 'Yoo, Limited | D97: 10960
A98: 94 | B98: AK | C98: Goldbelt, Incorporated | D98: 11390
A99: 95 | B99: AK | C99: Golovin Native Corporation | D99: 10150
A100: 96 | B100: AK | C100: Gulkana Village | D100: 10050
A101: 97 | B101: AK | C101: Gwitchyaazhee Corporation | D101: 10570
A102: 98 | B102: AK | C102: Haida Corporation | D102: 10160
A103: 99 | B103: AK | C103: Healy Lake Village | D103: 10010
A104: 100 | B104: AK | C104: Hee-yea Lingde Corporation | D104: 10140
A105: 101 | B105: AK | C105: Holy Cross Village | D105: 10270
A106: 102 | B106: AK | C106: Hoonah Indian Association | D106: 10430
A107: 103 | B107: AK | C107: Hughes Village | D107: 10070
A108: 104 | B108: AK | C108: Huna Totem Corporation | D108: 10430
A109: 105 | B109: AK | C109: Hungwitchin Corporation | D109: 10040
A110: 106 | B110: AK | C110: Huslia Village | D110: 10240
A111: 107 | B111: AK | C111: Hydaburg Cooperative Association | D111: 10160
A112: 108 | B112: AK | C112: Igiugig Native Corporation | D112: 10030
A113: 109 | B113: AK | C113: Igiugig Village | D113: 10030
A114: 110 | B114: AK | C114: Iliamna Natives Limited | D114: 10050
A115: 111 | B115: AK | C115: Inalik Native Corporation | D115: 10140
A116: 112 | B116: AK | C116: Inupiat Community of the Arctic Slope | D116: 14790
A117: 113 | B117: AK | C117: Iqfijouaq Company | D117: 10170
A118: 114 | B118: AK | C118: Iqugmiut Traditional Council | D118: 10190
A119: 115 | B119: AK | C119: Isanotski Corporation | D119: 10040
A120: 116 | B120: AK | C120: Ivanof Bay Tribe | D120: 10030
A121: 117 | B121: AK | C121: Kaguyak Village | D121: 10010
A122: 118 | B122: AK | C122: Kake Tribal Corporation | D122: 10360
A123: 119 | B123: AK | C123: Kaktovik Inupiat Corporation | D123: 10080
A124: 120 | B124: AK | C124: Kaktovik Village (aka Barter Island) | D124: 10080
A125: 121 | B125: AK | C125: Kasigluk Traditional Elders Council | D125: 10340
A126: 122 | B126: AK | C126: Kasigluk, Inc. | D126: 10340
A127: 123 | B127: AK | C127: Kavilco Incorporated | D127: 10070
A128: 124 | B128: AK | C128: Kenai Natives Association Inc. | D128: 10610
A129: 125 | B129: AK | C129: Kenaitze Indian Tribe | D129: 10610
A130: 126 | B130: AK | C130: Ketchikan Indian Community | D130: 12280
A131: 127 | B131: AK | C131: Kian Tr'ee Corporation | D131: 10000
A132: 128 | B132: AK | C132: Kijik Corporation | D132: 10180
A133: =IFERROR(A132+1,1) -> 129 | B133: AK | C133: Kikiktagruk Inupiat Corporation | D133: 11340
A134: 130 | B134: AK | C134: King Island Native Community | D134: 10250
A135: 131 | B135: AK | C135: King Island Native Corporation | D135: 10250
A136: 132 | B136: AK | C136: King Salmon Tribe | D136: 10030
A137: 133 | B137: AK | C137: Klawock Cooperative Association | D137: 10210
A138: 134 | B138: AK | C138: Klawock Heenya Corporation | D138: 10210
A139: 135 | B139: AK | C139: Klukwan, Inc. | D139: 10100
A140: 136 | B140: AK | C140: Knik Tribe | D140: 11000
A141: 137 | B141: AK | C141: Knikatnu, Inc. | D141: 11000
A142: 138 | B142: AK | C142: Kokarmuit Corporation | D142: 10170
A143: 139 | B143: AK | C143: Kokhanok Village | D143: 10100
A144: 140 | B144: AK | C144: Koliganek Natives Limited | D144: 10140
A145: 141 | B145: AK | C145: Kongnikilnomuit Yuita Corporation | D145: 10060
A146: 142 | B146: AK | C146: Koniag, Inc. | D146: 11980
A147: 143 | B147: AK | C147: Kootznoowoo Incorporated | D147: 10080
A148: 144 | B148: AK | C148: Kotlik Yupik Corporation | D148: 10290
A149: 145 | B149: AK | C149: K'oyitl'ots'ina Limited | D149: 10460
A150: 146 | B150: AK | C150: Koyuk Native Corporation | D150: 10210
A151: 147 | B151: AK | C151: Koyukuk Native Village | D151: 10140
A152: 148 | B152: AK | C152: Kugkaktlik Limited | D152: 10400
A153: 149 | B153: AK | C153: Kuitsarak, Inc. | D153: 10150
A154: 150 | B154: AK | C154: Kukulget, Inc. | D154: 10370
A155: 151 | B155: AK | C155: Kuukpik Corporation | D155: 10180
A156: 152 | B156: AK | C156: Kwethluk Incorporated | D156: 10460
A157: 153 | B157: AK | C157: Kwik Incorporated | D157: 10250
A158: 154 | B158: AK | C158: Leisnoi, Incorporated | D158: 10180
A159: 155 | B159: AK | C159: Levelock Natives Limited | D159: 10080
A160: 156 | B160: AK | C160: Levelock Village | D160: 10080
A161: 157 | B161: AK | C161: Lime Village | D161: 10010
A162: 158 | B162: AK | C162: Lime Village Company | D162: 10010
A163: 159 | B163: AK | C163: Litnik, Inc. | D163: 10000
A164: 160 | B164: AK | C164: Manley Hot Springs Village | D164: 10030
A165: 161 | B165: AK | C165: Manokotak Natives Limited | D165: 10260
A166: 162 | B166: AK | C166: Manokotak Village | D166: 10260
A167: 163 | B167: AK | C167: Mary's Igloo Native Corporation | D167: 10080
A168: 164 | B168: AK | C168: Maserculiq, Incorporated | D168: 10150
A169: 165 | B169: AK | C169: McGrath Native Village | D169: 10160
A170: 166 | B170: AK | C170: Mendas Cha-ag Native Corporation | D170: 10010
A171: 167 | B171: AK | C171: Mentasta Traditional Council | D171: 10090
A172: 168 | B172: AK | C172: Metlakatla Indian Community, Annette Island Reserve | D172: 10850
A173: 169 | B173: AK | C173: Montana Creek Native Association, Inc. | D173: 10000
A174: 170 | B174: AK | C174: MTNT Ltd. | D174: 10240
A175: 171 | B175: AK | C175: Nagamut Limited | D175: 10000
A176: 172 | B176: AK | C176: Naknek Native Village | D176: 10220
A177: 173 | B177: AK | C177: NANA Regional Corporation | D177: 13920
A178: 174 | B178: AK | C178: Napakiak Corporation | D178: 10240
A179: 175 | B179: AK | C179: Napaskiak Incorporated | D179: 10230
A180: 176 | B180: AK | C180: Native Village of Afognak | D180: 10270
A181: 177 | B181: AK | C181: Native Village of Akhiok | D181: 10030
A182: 178 | B182: AK | C182: Native Village of Akutan | D182: 10070
A183: 179 | B183: AK | C183: Native Village of Aleknagik | D183: 10150
A184: 180 | B184: AK | C184: Native Village of Ambler | D184: 10210
A185: 181 | B185: AK | C185: Native Village of Atka | D185: 10080
A186: 182 | B186: AK | C186: Native Village of Atqasuk | D186: 10080
A187: 183 | B187: AK | C187: Native Village of Barrow Inupiat Traditional Government | D187: 11740
A188: 184 | B188: AK | C188: Native Village of Belkofski | D188: 10040
A189: 185 | B189: AK | C189: Native Village of Brevig Mission | D189: 10180
A190: 186 | B190: AK | C190: Native Village of Buckland | D190: 10270
A191: 187 | B191: AK | C191: Native Village of Cantwell | D191: 10060
A192: 188 | B192: AK | C192: Native Village of Chenega (aka Chanega) | D192: 10130
A193: 189 | B193: AK | C193: Native Village of Chignik Lagoon | D193: 10110
A194: 190 | B194: AK | C194: Native Village of Chitina | D194: 10130
A195: 191 | B195: AK | C195: Native Village of Chuathbaluk (Russian Mission, Kuskokwim) | D195: 10070
A196: 192 | B196: AK | C196: Native Village of Council | D196: 10070
A197: =IFERROR(A196+1,1) -> 193 | B197: AK | C197: Native Village of Deering | D197: 10110
A198: 194 | B198: AK | C198: Native Village of Diomede (aka Inalik) | D198: 10140
A199: 195 | B199: AK | C199: Native Village of Eagle | D199: 10040
A200: 196 | B200: AK | C200: Native Village of Eek | D200: 10170
A201: 197 | B201: AK | C201: Native Village of Ekuk | D201: 10040
... 578 more rows
